[Event "Titled Tuesday Blitz July 4 Early 2023"]
[White "Pranav, V"]
[Black "Aravindh, Chithambaram VR."]
[WhiteFideId "25060783"]
[BlackFideId "5072786"]
[WhiteElo "3007"]
[BlackElo "2923"]
[Result "1-0"]
[Round "9"]
[TimeControl "180+2"]
[Date "2023.07.04"]
[WhiteClock "0:00:04"]
[BlackClock "0:00:00"]
[Board "6"]

1. e4 {[%clk 0:03:00]}  c6 {[%clk 0:02:59]} 2. d4 {[%clk 0:02:59]}  d5 {[%clk 0:02:59]} 3. Nc3 {[%clk 0:03:00]}  dxe4 {[%clk 0:02:58]} 4. Nxe4 {[%clk 0:03:01]}  Nf6 {[%clk 0:02:59]} 5. Nxf6+ {[%clk 0:03:01]}  exf6 {[%clk 0:02:59]} 6. Be3 {[%clk 0:03:02]}  Bd6 {[%clk 0:02:58]} 7. Bd3 {[%clk 0:03:02]}  O-O {[%clk 0:02:53]} 8. Ne2 {[%clk 0:03:01]}  Bf5 {[%clk 0:02:42]} 9. O-O {[%clk 0:02:55]}  Bxd3 {[%clk 0:02:41]} 10. Qxd3 {[%clk 0:02:56]}  Re8 {[%clk 0:02:41]} 11. c4 {[%clk 0:02:56]}  Nd7 {[%clk 0:02:41]} 12. Rad1 {[%clk 0:02:53]}  Nf8 {[%clk 0:02:37]} 13. c5 {[%clk 0:02:48]}  Bc7 {[%clk 0:02:27]} 14. Nc3 {[%clk 0:02:48]}  Ba5 {[%clk 0:02:15]} 15. d5 {[%clk 0:02:34]}  Bxc3 {[%clk 0:02:14]} 16. Qxc3 {[%clk 0:02:35]}  cxd5 {[%clk 0:02:13]} 17. Qb3 {[%clk 0:02:36]}  Qc7 {[%clk 0:02:09]} 18. Rxd5 {[%clk 0:02:34]}  Re4 {[%clk 0:02:08]} 19. Rfd1 {[%clk 0:02:28]}  Rae8 {[%clk 0:02:08]} 20. g3 {[%clk 0:02:21]}  h6 {[%clk 0:02:02]} 21. Rd6 {[%clk 0:02:15]}  Qc8 {[%clk 0:01:59]} 22. Qd5 {[%clk 0:02:00]}  R4e5 {[%clk 0:01:44]} 23. Qd3 {[%clk 0:01:57]}  Qh3 {[%clk 0:01:36]} 24. Qf1 {[%clk 0:01:45]}  Qg4 {[%clk 0:01:35]} 25. a3 {[%clk 0:01:35]}  Ng6 {[%clk 0:01:33]} 26. R1d4 {[%clk 0:01:23]}  Qf5 {[%clk 0:01:25]} 27. b4 {[%clk 0:01:19]}  R5e7 {[%clk 0:01:25]} 28. Qd3 {[%clk 0:01:08]}  Qf3 {[%clk 0:01:21]} 29. Qd1 {[%clk 0:01:05]}  Ne5 {[%clk 0:01:17]} 30. Rf4 {[%clk 0:00:52]}  Qxd1+ {[%clk 0:01:17]} 31. Rxd1 {[%clk 0:00:53]}  h5 {[%clk 0:01:13]} 32. Kg2 {[%clk 0:00:53]}  Ng4 {[%clk 0:01:12]} 33. Bd4 {[%clk 0:00:52]}  Rd7 {[%clk 0:01:07]} 34. h3 {[%clk 0:00:45]}  Nh6 {[%clk 0:00:42]} 35. Rc1 {[%clk 0:00:40]}  Kh7 {[%clk 0:00:42]} 36. c6 {[%clk 0:00:37]}  bxc6 {[%clk 0:00:42]} 37. Rxc6 {[%clk 0:00:38]}  Re2 {[%clk 0:00:14]} 38. Ra6 {[%clk 0:00:32]}  Rd2 {[%clk 0:00:04]} 39. Bxa7 {[%clk 0:00:29]}  Ra2 {[%clk 0:00:04]} 40. Be3 {[%clk 0:00:27]}  Rd3 {[%clk 0:00:03]} 41. Rf3 {[%clk 0:00:21]}  Rd1 {[%clk 0:00:03]} 42. Bxh6 {[%clk 0:00:12]}  Kxh6 {[%clk 0:00:04]} 43. Rf4 {[%clk 0:00:07]}  Rb1 {[%clk 0:00:03]} 44. Ra5 {[%clk 0:00:06]}  Kg6 {[%clk 0:00:03]} 45. Rff5 {[%clk 0:00:04]}  Rb3 {[%clk 0:00:03]} 46. Rf3 {[%clk 0:00:04]}  Rb1 {[%clk 0:00:02]} 47. Ra4 {[%clk 0:00:03]}  Rbb2 {[%clk 0:00:02]} 48. Ra5 {[%clk 0:00:03]}  Rb1 {[%clk 0:00:00]} 49. b5 {[%clk 0:00:04]} 1-0


[Site "https://www.chess.com"]

[Event "Titled Tuesday Blitz July 4 Early 2023"]
[White "Demchenko, Anton"]
[Black "Terry, Renato"]
[WhiteFideId "4160258"]
[BlackFideId "3803457"]
[WhiteElo "2897"]
[BlackElo "2992"]
[Result "1/2-1/2"]
[Round "9"]
[TimeControl "180+2"]
[Date "2023.07.04"]
[WhiteClock "0:00:06"]
[BlackClock "0:00:04"]
[Board "8"]

1. e4 {[%clk 0:02:58]}  c6 {[%clk 0:03:00]} 2. d4 {[%clk 0:02:57]}  d5 {[%clk 0:03:01]} 3. e5 {[%clk 0:02:58]}  c5 {[%clk 0:03:01]} 4. Nf3 {[%clk 0:02:58]}  cxd4 {[%clk 0:03:00]} 5. Nxd4 {[%clk 0:02:58]}  Nc6 {[%clk 0:03:01]} 6. Nxc6 {[%clk 0:02:59]}  bxc6 {[%clk 0:03:01]} 7. Bd3 {[%clk 0:03:00]}  e6 {[%clk 0:03:01]} 8. Nd2 {[%clk 0:03:01]}  a5 {[%clk 0:03:01]} 9. Qe2 {[%clk 0:03:01]}  Qb6 {[%clk 0:02:58]} 10. O-O {[%clk 0:03:00]}  Ba6 {[%clk 0:02:57]} 11. c4 {[%clk 0:03:01]}  Ne7 {[%clk 0:02:57]} 12. b3 {[%clk 0:02:58]}  Ng6 {[%clk 0:02:56]} 13. Nf3 {[%clk 0:02:58]}  Bc5 {[%clk 0:02:57]} 14. h4 {[%clk 0:02:56]}  Ne7 {[%clk 0:02:56]} 15. h5 {[%clk 0:02:56]}  h6 {[%clk 0:02:56]} 16. Bf4 {[%clk 0:02:56]}  a4 {[%clk 0:02:25]} 17. Rab1 {[%clk 0:02:43]}  axb3 {[%clk 0:02:25]} 18. axb3 {[%clk 0:02:44]}  Bb4 {[%clk 0:02:20]} 19. Nh2 {[%clk 0:02:37]}  Qd4 {[%clk 0:02:14]} 20. Bg3 {[%clk 0:02:14]}  Rd8 {[%clk 0:01:44]} 21. Rfd1 {[%clk 0:02:10]}  Qc5 {[%clk 0:01:42]} 22. Ra1 {[%clk 0:01:42]}  Bb7 {[%clk 0:01:41]} 23. Rac1 {[%clk 0:01:32]}  Qb6 {[%clk 0:01:37]} 24. Ng4 {[%clk 0:01:15]}  c5 {[%clk 0:01:25]} 25. Bh4 {[%clk 0:01:05]}  dxc4 {[%clk 0:01:18]} 26. Bxc4 {[%clk 0:00:58]}  Rxd1+ {[%clk 0:00:59]} 27. Rxd1 {[%clk 0:00:59]}  Nc6 {[%clk 0:01:00]} 28. Rd6 {[%clk 0:00:52]}  Qc7 {[%clk 0:00:53]} 29. Bb5 {[%clk 0:00:41]}  O-O {[%clk 0:00:53]} 30. Nxh6+ {[%clk 0:00:40]}  Kh7 {[%clk 0:00:50]} 31. Bd3+ {[%clk 0:00:35]}  Kh8 {[%clk 0:00:49]} 32. Qe4 {[%clk 0:00:34]}  f5 {[%clk 0:00:48]} 33. exf6 {[%clk 0:00:33]}  gxf6 {[%clk 0:00:49]} 34. Qg6 {[%clk 0:00:25]}  Qg7 {[%clk 0:00:47]} 35. Rxe6 {[%clk 0:00:20]}  Ne5 {[%clk 0:00:39]} 36. Qxg7+ {[%clk 0:00:20]}  Kxg7 {[%clk 0:00:40]} 37. Nf5+ {[%clk 0:00:20]}  Kg8 {[%clk 0:00:41]} 38. Bc4 {[%clk 0:00:10]}  Nxc4 {[%clk 0:00:38]} 39. bxc4 {[%clk 0:00:10]}  Bc8 {[%clk 0:00:39]} 40. Ne7+ {[%clk 0:00:05]}  Kf7 {[%clk 0:00:39]} 41. Rxf6+ {[%clk 0:00:05]}  Kxe7 {[%clk 0:00:39]} 42. Rf3+ {[%clk 0:00:03]}  Ke8 {[%clk 0:00:39]} 43. Re3+ {[%clk 0:00:03]}  Kf7 {[%clk 0:00:39]} 44. Re7+ {[%clk 0:00:04]}  Kg8 {[%clk 0:00:39]} 45. h6 {[%clk 0:00:05]}  Bf5 {[%clk 0:00:37]} 46. Rg7+ {[%clk 0:00:04]}  Kh8 {[%clk 0:00:36]} 47. g4 {[%clk 0:00:04]}  Bc2 {[%clk 0:00:27]} 48. Bg3 {[%clk 0:00:03]}  Bc3 {[%clk 0:00:26]} 49. Rc7 {[%clk 0:00:04]}  Rg8 {[%clk 0:00:22]} 50. Rxc5 {[%clk 0:00:02]}  Rxg4 {[%clk 0:00:21]} 51. Kh2 {[%clk 0:00:03]}  Kh7 {[%clk 0:00:20]} 52. Rc6 {[%clk 0:00:03]}  Be4 {[%clk 0:00:19]} 53. Re6 {[%clk 0:00:02]}  Bg6 {[%clk 0:00:15]} 54. c5 {[%clk 0:00:02]}  Rc4 {[%clk 0:00:15]} 55. c6 {[%clk 0:00:02]}  Bf5 {[%clk 0:00:16]} 56. Rd6 {[%clk 0:00:02]}  Bb4 {[%clk 0:00:14]} 57. Rd5 {[%clk 0:00:02]}  Be6 {[%clk 0:00:13]} 58. Re5 {[%clk 0:00:02]}  Rxc6 {[%clk 0:00:13]} 59. Rg5 {[%clk 0:00:02]}  Kxh6 {[%clk 0:00:13]} 60. Bf4 {[%clk 0:00:02]}  Kh7 {[%clk 0:00:13]} 61. Kg3 {[%clk 0:00:02]}  Be7 {[%clk 0:00:13]} 62. Re5 {[%clk 0:00:02]}  Bf6 {[%clk 0:00:13]} 63. Rh5+ {[%clk 0:00:03]}  Kg6 {[%clk 0:00:14]} 64. Ra5 {[%clk 0:00:04]}  Rc3+ {[%clk 0:00:13]} 65. f3 {[%clk 0:00:04]}  Rb3 {[%clk 0:00:12]} 66. Ra6 {[%clk 0:00:04]}  Kf7 {[%clk 0:00:13]} 67. Ra7+ {[%clk 0:00:04]}  Ke8 {[%clk 0:00:13]} 68. Ra6 {[%clk 0:00:05]}  Kf7 {[%clk 0:00:13]} 69. Ra7+ {[%clk 0:00:05]}  Kg6 {[%clk 0:00:09]} 70. Ra6 {[%clk 0:00:05]}  Bd5 {[%clk 0:00:08]} 71. Be5 {[%clk 0:00:04]}  Rxf3+ {[%clk 0:00:08]} 72. Kg4 {[%clk 0:00:05]}  Rf1 {[%clk 0:00:03]} 73. Rxf6+ {[%clk 0:00:06]}  Rxf6 {[%clk 0:00:04]} 74. Bxf6 {[%clk 0:00:06]} 1/2-1/2


[Site "https://www.chess.com"]

[Event "Titled Tuesday Blitz July 4 Early 2023"]
[White "Rahman, Masruri"]
[Black "Taspinar, Yanki"]
[WhiteFideId "7101163"]
[BlackFideId "34561188"]
[WhiteElo "2854"]
[BlackElo "2705"]
[Result "0-1"]
[Round "9"]
[TimeControl "180+2"]
[Date "2023.07.04"]
[WhiteClock "0:00:05"]
[BlackClock "0:00:05"]
[Board "20"]

1. d4 {[%clk 0:03:00]}  Nf6 {[%clk 0:02:57]} 2. Bf4 {[%clk 0:02:58]}  e6 {[%clk 0:02:50]} 3. e3 {[%clk 0:02:58]}  b6 {[%clk 0:02:51]} 4. Nd2 {[%clk 0:02:56]}  Bb7 {[%clk 0:02:51]} 5. Ngf3 {[%clk 0:02:57]}  Be7 {[%clk 0:02:50]} 6. Bd3 {[%clk 0:02:58]}  O-O {[%clk 0:02:46]} 7. O-O {[%clk 0:02:58]}  c5 {[%clk 0:02:47]} 8. c3 {[%clk 0:02:56]}  Nc6 {[%clk 0:02:41]} 9. h3 {[%clk 0:02:51]}  d6 {[%clk 0:02:36]} 10. Qe2 {[%clk 0:02:50]}  Rc8 {[%clk 0:02:33]} 11. Ba6 {[%clk 0:02:48]}  Qd7 {[%clk 0:02:32]} 12. Bxb7 {[%clk 0:02:46]}  Qxb7 {[%clk 0:02:33]} 13. a4 {[%clk 0:02:45]}  Rfd8 {[%clk 0:02:28]} 14. Rfd1 {[%clk 0:02:44]}  h6 {[%clk 0:02:26]} 15. Nc4 {[%clk 0:02:40]}  Qa6 {[%clk 0:02:20]} 16. Kf1 {[%clk 0:02:24]}  d5 {[%clk 0:02:14]} 17. Nce5 {[%clk 0:02:12]}  Qxe2+ {[%clk 0:02:14]} 18. Kxe2 {[%clk 0:02:12]}  Nxe5 {[%clk 0:02:15]} 19. Bxe5 {[%clk 0:02:08]}  Ne8 {[%clk 0:02:04]} 20. Nd2 {[%clk 0:01:46]}  Nd6 {[%clk 0:01:54]} 21. Bxd6 {[%clk 0:01:45]}  Bxd6 {[%clk 0:01:55]} 22. a5 {[%clk 0:01:42]}  b5 {[%clk 0:01:51]} 23. a6 {[%clk 0:01:43]}  b4 {[%clk 0:01:38]} 24. cxb4 {[%clk 0:01:30]}  cxd4 {[%clk 0:01:38]} 25. exd4 {[%clk 0:01:26]}  Bxb4 {[%clk 0:01:38]} 26. Kd3 {[%clk 0:01:14]}  Kf8 {[%clk 0:01:37]} 27. Ra4 {[%clk 0:01:03]}  Bd6 {[%clk 0:01:37]} 28. b4 {[%clk 0:00:44]}  Rc7 {[%clk 0:01:31]} 29. b5 {[%clk 0:00:39]}  Rdc8 {[%clk 0:01:14]} 30. b6 {[%clk 0:00:35]}  axb6 {[%clk 0:01:12]} 31. Rb1 {[%clk 0:00:35]}  Rc3+ {[%clk 0:01:07]} 32. Ke2 {[%clk 0:00:36]}  R3c6 {[%clk 0:01:04]} 33. a7 {[%clk 0:00:34]}  Ra8 {[%clk 0:01:04]} 34. Ra6 {[%clk 0:00:31]}  Ke7 {[%clk 0:01:04]} 35. Kd3 {[%clk 0:00:27]}  Kd7 {[%clk 0:01:03]} 36. Nb3 {[%clk 0:00:22]}  Rc7 {[%clk 0:00:43]} 37. Rba1 {[%clk 0:00:19]}  Kc6 {[%clk 0:00:15]} 38. Nc1 {[%clk 0:00:14]}  Kb7 {[%clk 0:00:12]} 39. Ne2 {[%clk 0:00:14]}  Bb4 {[%clk 0:00:10]} 40. R6a4 {[%clk 0:00:12]}  Ba5 {[%clk 0:00:10]} 41. Rb1 {[%clk 0:00:09]}  Kxa7 {[%clk 0:00:07]} 42. f4 {[%clk 0:00:08]}  Rac8 {[%clk 0:00:07]} 43. Ke3 {[%clk 0:00:07]}  Rc2 {[%clk 0:00:07]} 44. Ra3 {[%clk 0:00:06]}  Ka6 {[%clk 0:00:06]} 45. Rd3 {[%clk 0:00:04]}  Ra2 {[%clk 0:00:04]} 46. Ng3 {[%clk 0:00:03]}  Rcc2 {[%clk 0:00:04]} 47. Kf3 {[%clk 0:00:03]}  Rxg2 {[%clk 0:00:05]} 48. Kg4 {[%clk 0:00:01]}  g6 {[%clk 0:00:05]} 49. Kh4 {[%clk 0:00:01]}  b5 {[%clk 0:00:04]} 50. Rdb3 {[%clk 0:00:02]}  Bd8+ {[%clk 0:00:04]} 51. Kg4 {[%clk 0:00:01]}  h5+ {[%clk 0:00:05]} 52. Kf3 {[%clk 0:00:02]}  Rgf2+ {[%clk 0:00:03]} 53. Ke3 {[%clk 0:00:02]}  Rfc2 {[%clk 0:00:02]} 54. Nf1 {[%clk 0:00:02]}  Ba5 {[%clk 0:00:01]} 55. Kd3 {[%clk 0:00:03]}  Rc4 {[%clk 0:00:01]} 56. Ke3 {[%clk 0:00:03]}  Rca4 {[%clk 0:00:01]} 57. Kf3 {[%clk 0:00:04]}  R2a3 {[%clk 0:00:02]} 58. Ne3 {[%clk 0:00:05]}  Rxb3 {[%clk 0:00:02]} 59. Rxb3 {[%clk 0:00:05]}  Rb4 {[%clk 0:00:03]} 60. Ra3 {[%clk 0:00:05]}  Rxd4 {[%clk 0:00:03]} 61. Rd3 {[%clk 0:00:06]}  Rxd3 {[%clk 0:00:04]} 62. Ke2 {[%clk 0:00:07]}  Rxe3+ {[%clk 0:00:04]} 63. Kxe3 {[%clk 0:00:05]}  Bc7 {[%clk 0:00:05]} 0-1


[Site "https://www.chess.com"]

[Event "Titled Tuesday Blitz July 4 Early 2023"]
[White "Zhigalko, Sergei"]
[Black "Postny, Evgeny"]
[WhiteFideId "13502956"]
[BlackFideId "2804344"]
[WhiteElo "2890"]
[BlackElo "2738"]
[Result "0-1"]
[Round "9"]
[TimeControl "180+2"]
[Date "2023.07.04"]
[WhiteClock "0:00:01"]
[BlackClock "0:00:07"]
[Board "26"]

1. e4 {[%clk 0:03:00]}  e5 {[%clk 0:03:00]} 2. Nf3 {[%clk 0:03:01]}  Nc6 {[%clk 0:03:00]} 3. Bb5 {[%clk 0:03:00]}  a6 {[%clk 0:03:01]} 4. Ba4 {[%clk 0:03:00]}  Nf6 {[%clk 0:03:01]} 5. O-O {[%clk 0:03:00]}  Be7 {[%clk 0:03:02]} 6. Re1 {[%clk 0:03:01]}  b5 {[%clk 0:03:02]} 7. Bb3 {[%clk 0:03:01]}  d6 {[%clk 0:03:02]} 8. c3 {[%clk 0:03:02]}  O-O {[%clk 0:03:02]} 9. h3 {[%clk 0:03:03]}  Nb8 {[%clk 0:03:02]} 10. d4 {[%clk 0:03:02]}  Nbd7 {[%clk 0:03:02]} 11. Nbd2 {[%clk 0:03:03]}  Bb7 {[%clk 0:03:00]} 12. Bc2 {[%clk 0:03:04]}  Re8 {[%clk 0:02:58]} 13. Nf1 {[%clk 0:03:04]}  Bf8 {[%clk 0:02:59]} 14. Ng3 {[%clk 0:03:05]}  g6 {[%clk 0:02:59]} 15. b3 {[%clk 0:03:05]}  c5 {[%clk 0:02:58]} 16. d5 {[%clk 0:03:05]}  c4 {[%clk 0:02:54]} 17. bxc4 {[%clk 0:03:02]}  bxc4 {[%clk 0:02:54]} 18. Rb1 {[%clk 0:02:15]}  Qc7 {[%clk 0:02:54]} 19. Be3 {[%clk 0:02:09]}  Reb8 {[%clk 0:02:51]} 20. Nd2 {[%clk 0:02:01]}  a5 {[%clk 0:02:48]} 21. Ba4 {[%clk 0:01:57]}  Nc5 {[%clk 0:02:31]} 22. Bb5 {[%clk 0:01:45]}  Nfd7 {[%clk 0:02:16]} 23. Nxc4 {[%clk 0:01:37]}  Ba6 {[%clk 0:02:07]} 24. Bxa6 {[%clk 0:01:22]}  Nxa6 {[%clk 0:02:08]} 25. Qe2 {[%clk 0:01:19]}  Nac5 {[%clk 0:01:48]} 26. Na3 {[%clk 0:01:06]}  Na4 {[%clk 0:01:43]} 27. Nb5 {[%clk 0:01:05]}  Qc8 {[%clk 0:01:24]} 28. c4 {[%clk 0:01:06]}  Nac5 {[%clk 0:01:18]} 29. Rec1 {[%clk 0:01:00]}  Qd8 {[%clk 0:01:12]} 30. Qd2 {[%clk 0:00:54]}  h5 {[%clk 0:01:04]} 31. f3 {[%clk 0:00:49]}  Be7 {[%clk 0:00:59]} 32. Kh1 {[%clk 0:00:40]}  Rc8 {[%clk 0:00:49]} 33. Qc2 {[%clk 0:00:24]}  Bg5 {[%clk 0:00:42]} 34. Bxg5 {[%clk 0:00:19]}  Qxg5 {[%clk 0:00:43]} 35. Nf1 {[%clk 0:00:16]}  Qe7 {[%clk 0:00:42]} 36. Ne3 {[%clk 0:00:16]}  Kh7 {[%clk 0:00:40]} 37. Qd2 {[%clk 0:00:15]}  Nf6 {[%clk 0:00:37]} 38. Rc2 {[%clk 0:00:11]}  h4 {[%clk 0:00:36]} 39. Ng4 {[%clk 0:00:09]}  Nh5 {[%clk 0:00:36]} 40. Qh6+ {[%clk 0:00:09]}  Kg8 {[%clk 0:00:37]} 41. Nc3 {[%clk 0:00:07]}  Nd3 {[%clk 0:00:29]} 42. Ne2 {[%clk 0:00:07]}  Rab8 {[%clk 0:00:25]} 43. Rd1 {[%clk 0:00:04]}  Nc5 {[%clk 0:00:12]} 44. Nc3 {[%clk 0:00:05]}  Qf8 {[%clk 0:00:08]} 45. Nb5 {[%clk 0:00:03]}  Qxh6 {[%clk 0:00:04]} 46. Nxh6+ {[%clk 0:00:04]}  Kg7 {[%clk 0:00:04]} 47. Ng4 {[%clk 0:00:04]}  Rb6 {[%clk 0:00:04]} 48. Rb1 {[%clk 0:00:04]}  Nf4 {[%clk 0:00:04]} 49. Kh2 {[%clk 0:00:04]}  Rcb8 {[%clk 0:00:03]} 50. Ne3 {[%clk 0:00:04]}  Ncd3 {[%clk 0:00:03]} 51. Rd2 {[%clk 0:00:03]}  Nc5 {[%clk 0:00:03]} 52. Kh1 {[%clk 0:00:03]}  Kf8 {[%clk 0:00:04]} 53. Rc2 {[%clk 0:00:02]}  Ke7 {[%clk 0:00:04]} 54. Nd1 {[%clk 0:00:01]}  Kd7 {[%clk 0:00:04]} 55. Ndc3 {[%clk 0:00:02]}  f6 {[%clk 0:00:04]} 56. Na4 {[%clk 0:00:02]}  Nxa4 {[%clk 0:00:03]} 57. Rbc1 {[%clk 0:00:01]}  Nc5 {[%clk 0:00:04]} 58. Nc3 {[%clk 0:00:01]}  Nfd3 {[%clk 0:00:04]} 59. Nb5 {[%clk 0:00:02]}  Nxc1 {[%clk 0:00:04]} 60. Rxc1 {[%clk 0:00:02]}  Rxb5 {[%clk 0:00:04]} 61. cxb5 {[%clk 0:00:02]}  Rxb5 {[%clk 0:00:05]} 62. Rc2 {[%clk 0:00:03]}  Rb1+ {[%clk 0:00:05]} 63. Kh2 {[%clk 0:00:04]}  Rb4 {[%clk 0:00:06]} 64. g3 {[%clk 0:00:05]}  g5 {[%clk 0:00:06]} 65. gxh4 {[%clk 0:00:05]}  gxh4 {[%clk 0:00:07]} 66. Kg2 {[%clk 0:00:05]}  a4 {[%clk 0:00:07]} 67. Kf2 {[%clk 0:00:05]}  a3 {[%clk 0:00:08]} 68. Ke3 {[%clk 0:00:06]}  Rb2 {[%clk 0:00:08]} 69. Rd2 {[%clk 0:00:05]}  Kc7 {[%clk 0:00:08]} 70. Rd1 {[%clk 0:00:01]}  Rxa2 {[%clk 0:00:07]} 71. f4 {[%clk 0:00:02]}  Rb2 {[%clk 0:00:07]} 72. fxe5 {[%clk 0:00:03]}  fxe5 {[%clk 0:00:07]} 73. Ra1 {[%clk 0:00:04]}  Rb3+ {[%clk 0:00:07]} 74. Kf2 {[%clk 0:00:04]}  Kb6 {[%clk 0:00:08]} 75. Rxa3 {[%clk 0:00:01]}  Rxa3 {[%clk 0:00:07]} 0-1


[Site "https://www.chess.com"]

[Event "Titled Tuesday Blitz July 4 Early 2023"]
[White "Wagner, Dennis"]
[Black "Demidov, Mikhail"]
[WhiteFideId "24650684"]
[BlackFideId "4197143"]
[WhiteElo "2729"]
[BlackElo "2889"]
[Result "0-1"]
[Round "9"]
[TimeControl "180+2"]
[Date "2023.07.04"]
[WhiteClock "0:00:10"]
[BlackClock "0:00:16"]
[Board "27"]

1. e4 {[%clk 0:03:00]}  g6 {[%clk 0:02:52]} 2. d4 {[%clk 0:03:00]}  Bg7 {[%clk 0:02:53]} 3. c4 {[%clk 0:03:01]}  Nc6 {[%clk 0:02:51]} 4. Ne2 {[%clk 0:02:57]}  d6 {[%clk 0:02:45]} 5. Nbc3 {[%clk 0:02:51]}  e5 {[%clk 0:02:45]} 6. Be3 {[%clk 0:02:51]}  f5 {[%clk 0:02:30]} 7. exf5 {[%clk 0:02:39]}  Bxf5 {[%clk 0:02:30]} 8. d5 {[%clk 0:02:38]}  Nce7 {[%clk 0:02:28]} 9. h3 {[%clk 0:02:28]}  h5 {[%clk 0:02:27]} 10. Ng3 {[%clk 0:02:23]}  Bh6 {[%clk 0:02:22]} 11. Bd3 {[%clk 0:02:13]}  Nf6 {[%clk 0:02:09]} 12. Bxh6 {[%clk 0:02:05]}  Rxh6 {[%clk 0:02:07]} 13. Qd2 {[%clk 0:02:02]}  Rh7 {[%clk 0:01:53]} 14. O-O-O {[%clk 0:02:00]}  Qd7 {[%clk 0:01:30]} 15. Nxf5 {[%clk 0:02:00]}  gxf5 {[%clk 0:01:27]} 16. Qg5 {[%clk 0:02:00]}  Kf7 {[%clk 0:01:25]} 17. g3 {[%clk 0:01:37]}  Rg8 {[%clk 0:01:22]} 18. Qd2 {[%clk 0:01:35]}  e4 {[%clk 0:01:14]} 19. Bc2 {[%clk 0:01:31]}  Ng6 {[%clk 0:01:08]} 20. f4 {[%clk 0:00:54]}  exf3 {[%clk 0:01:04]} 21. Rhf1 {[%clk 0:00:54]}  Ne5 {[%clk 0:01:02]} 22. Qf4 {[%clk 0:00:54]}  Kg6 {[%clk 0:00:37]} 23. g4 {[%clk 0:00:10]}  hxg4 {[%clk 0:00:36]} 24. hxg4 {[%clk 0:00:11]}  Nfxg4 {[%clk 0:00:36]} 25. Rxf3 {[%clk 0:00:11]}  Nxf3 {[%clk 0:00:15]} 26. Qxg4+ {[%clk 0:00:11]}  Ng5 {[%clk 0:00:15]} 27. Rg1 {[%clk 0:00:11]}  Kf6 {[%clk 0:00:13]} 28. Qd4+ {[%clk 0:00:10]}  Ke7 {[%clk 0:00:12]} 29. Re1+ {[%clk 0:00:07]}  Kf7 {[%clk 0:00:07]} 30. Qf4 {[%clk 0:00:06]}  Nh3 {[%clk 0:00:05]} 31. Qf3 {[%clk 0:00:07]}  Rg1 {[%clk 0:00:05]} 32. Bxf5 {[%clk 0:00:04]}  Rxe1+ {[%clk 0:00:05]} 33. Kd2 {[%clk 0:00:05]}  Qe7 {[%clk 0:00:05]} 34. Be6+ {[%clk 0:00:05]}  Kg7 {[%clk 0:00:04]} 35. Kxe1 {[%clk 0:00:06]}  Ng5 {[%clk 0:00:04]} 36. Qf5 {[%clk 0:00:06]}  Nxe6 {[%clk 0:00:04]} 37. dxe6 {[%clk 0:00:06]}  Rh6 {[%clk 0:00:05]} 38. Qg4+ {[%clk 0:00:06]}  Rg6 {[%clk 0:00:05]} 39. Qd4+ {[%clk 0:00:06]}  Qf6 {[%clk 0:00:05]} 40. Qxf6+ {[%clk 0:00:06]}  Rxf6 {[%clk 0:00:04]} 41. Nd5 {[%clk 0:00:06]}  Rxe6+ {[%clk 0:00:04]} 42. Kd2 {[%clk 0:00:07]}  c6 {[%clk 0:00:05]} 43. Nc3 {[%clk 0:00:07]}  Re5 {[%clk 0:00:05]} 44. Kd3 {[%clk 0:00:08]}  Kf6 {[%clk 0:00:06]} 45. Kd4 {[%clk 0:00:08]}  Ke6 {[%clk 0:00:06]} 46. b4 {[%clk 0:00:08]}  Rh5 {[%clk 0:00:07]} 47. b5 {[%clk 0:00:08]}  Rh4+ {[%clk 0:00:07]} 48. Kd3 {[%clk 0:00:08]}  Ke5 {[%clk 0:00:07]} 49. bxc6 {[%clk 0:00:08]}  bxc6 {[%clk 0:00:08]} 50. a4 {[%clk 0:00:08]}  Rd4+ {[%clk 0:00:08]} 51. Kc2 {[%clk 0:00:09]}  Rxc4 {[%clk 0:00:09]} 52. Kb3 {[%clk 0:00:10]}  Rxc3+ {[%clk 0:00:09]} 53. Kxc3 {[%clk 0:00:11]}  Kd5 {[%clk 0:00:10]} 54. Kb4 {[%clk 0:00:12]}  Kd4 {[%clk 0:00:10]} 55. Ka5 {[%clk 0:00:13]}  c5 {[%clk 0:00:10]} 56. Ka6 {[%clk 0:00:13]}  c4 {[%clk 0:00:10]} 57. Kxa7 {[%clk 0:00:14]}  c3 {[%clk 0:00:11]} 58. a5 {[%clk 0:00:15]}  c2 {[%clk 0:00:12]} 59. a6 {[%clk 0:00:15]}  c1=Q {[%clk 0:00:13]} 60. Ka8 {[%clk 0:00:16]}  Qa3 {[%clk 0:00:13]} 61. Ka7 {[%clk 0:00:16]}  d5 {[%clk 0:00:14]} 62. Kb7 {[%clk 0:00:17]}  Kc4 {[%clk 0:00:14]} 63. a7 {[%clk 0:00:17]}  d4 {[%clk 0:00:15]} 64. Kb8 {[%clk 0:00:12]}  Qxa7+ {[%clk 0:00:15]} 65. Kxa7 {[%clk 0:00:10]}  d3 {[%clk 0:00:16]} 0-1


[Site "https://www.chess.com"]

[Event "Titled Tuesday Blitz July 4 Early 2023"]
[White "Williams, Simon K"]
[Black "Goltsev, Dmitry"]
[WhiteFideId "404454"]
[BlackFideId "24176710"]
[WhiteElo "2692"]
[BlackElo "2823"]
[Result "0-1"]
[Round "9"]
[TimeControl "180+2"]
[Date "2023.07.04"]
[WhiteClock "0:00:05"]
[BlackClock "0:01:07"]
[Board "29"]

1. f4 {[%clk 0:03:00]}  d5 {[%clk 0:02:59]} 2. e3 {[%clk 0:03:00]}  Nf6 {[%clk 0:02:59]} 3. Nf3 {[%clk 0:02:59]}  c5 {[%clk 0:02:59]} 4. Be2 {[%clk 0:02:55]}  Nc6 {[%clk 0:03:00]} 5. O-O {[%clk 0:02:54]}  g6 {[%clk 0:03:01]} 6. d3 {[%clk 0:02:55]}  Bg7 {[%clk 0:03:02]} 7. Ne5 {[%clk 0:02:55]}  O-O {[%clk 0:03:02]} 8. Nxc6 {[%clk 0:02:55]}  bxc6 {[%clk 0:03:02]} 9. Nc3 {[%clk 0:02:54]}  Nd7 {[%clk 0:03:02]} 10. e4 {[%clk 0:02:54]}  e6 {[%clk 0:03:01]} 11. Qe1 {[%clk 0:02:49]}  a5 {[%clk 0:03:00]} 12. a4 {[%clk 0:02:39]}  Rb8 {[%clk 0:02:59]} 13. Kh1 {[%clk 0:02:35]}  Rb4 {[%clk 0:02:51]} 14. b3 {[%clk 0:02:19]}  c4 {[%clk 0:02:40]} 15. dxc4 {[%clk 0:01:55]}  dxc4 {[%clk 0:02:38]} 16. Bxc4 {[%clk 0:01:34]}  Nb6 {[%clk 0:02:33]} 17. Bd3 {[%clk 0:01:33]}  c5 {[%clk 0:02:15]} 18. Bd2 {[%clk 0:01:27]}  c4 {[%clk 0:02:12]} 19. bxc4 {[%clk 0:01:27]}  Nxc4 {[%clk 0:02:13]} 20. Bxc4 {[%clk 0:01:22]}  Rxc4 {[%clk 0:02:14]} 21. Rb1 {[%clk 0:01:08]}  Ba6 {[%clk 0:02:10]} 22. e5 {[%clk 0:01:02]}  Qd7 {[%clk 0:01:58]} 23. Rb6 {[%clk 0:00:58]}  Rc6 {[%clk 0:01:46]} 24. Rxc6 {[%clk 0:00:50]}  Qxc6 {[%clk 0:01:47]} 25. Rf3 {[%clk 0:00:48]}  Rd8 {[%clk 0:01:46]} 26. h4 {[%clk 0:00:44]}  h5 {[%clk 0:01:44]} 27. Ne4 {[%clk 0:00:36]}  Qxc2 {[%clk 0:01:42]} 28. Nd6 {[%clk 0:00:36]}  Rb8 {[%clk 0:01:31]} 29. Rc3 {[%clk 0:00:31]}  Qxa4 {[%clk 0:01:31]} 30. Rc7 {[%clk 0:00:30]}  Bd3 {[%clk 0:01:18]} 31. Qg3 {[%clk 0:00:28]}  Qd1+ {[%clk 0:01:09]} 32. Be1 {[%clk 0:00:26]}  Rb1 {[%clk 0:01:09]} 33. Rc8+ {[%clk 0:00:14]}  Kh7 {[%clk 0:01:09]} 34. Kh2 {[%clk 0:00:13]}  Qxe1 {[%clk 0:01:09]} 35. Nxf7 {[%clk 0:00:05]}  Qh1# {[%clk 0:01:07]} 0-1


[Site "https://www.chess.com"]